bitfinex-derivatives/quotes_BTCF0:USTF0_20210102
["timestamp","ask_amount","ask_price","bid_price","bid_amount"]
[1609584419267,5.99861056,29698.0,29697.0,0.00038059]
[1609584419466,5.9982,29698.0,29687.0,0.00038061]
[1609584419666,0.18043158,29688.0,29686.0,0.00038061]
[1609584419865,1.0,29687.0,29686.0,0.00038061]
[1609584420065,1.0,29687.0,29685.0,0.13428]
[1609584420265,1.0,29687.0,29686.0,0.00038061]
[1609584420466,2.0,29687.0,29686.0,0.00038061]
[1609584420867,1.0,29687.0,29686.0,0.00038061]
[1609584422568,0.18043158,29688.0,29686.0,0.00038061]
[1609584424969,0.18043158,29688.0,29687.0,0.0003806]
[1609584425368,0.0138,29687.0,29685.0,0.13428]
[1609584425770,0.0138,29687.0,29686.0,0.0003806]
[1609584426069,0.0138,29687.0,29686.0,0.6095806]
[1609584427671,0.0138,29687.0,29686.0,0.83106394]
[1609584431780,0.0138,29687.0,29686.0,0.22186394]
[1609584443488,0.0138,29687.0,29686.0,0.04143236]
[1609584463716,0.0138,29687.0,29686.0,0.22186394]
[1609584464116,0.0138,29687.0,29686.0,0.30397214]
[1609584465716,0.0138,29687.0,29686.0,0.22186394]
[1609584475628,0.0138,29687.0,29686.0,0.30397008]
[1609584480037,0.0138,29687.0,29686.0,0.1235385]
[1609584480439,0.0138,29687.0,29686.0,0.04143236]
[1609584482141,1.0138,29687.0,29686.0,0.04143236]
[1609584486047,0.0138,29687.0,29686.0,0.04143236]
[1609584489254,1.0138,29687.0,29686.0,0.04143236]
[1609584489753,0.0138,29687.0,29686.0,0.04143236]
[1609584494963,5.6196,29687.0,29686.0,0.04143236]
[1609584495160,6.6196,29687.0,29686.0,0.04143236]
[1609584496261,6.6196,29687.0,29686.0,0.0003806]
[1609584496662,0.0138,29687.0,29686.0,0.0003806]
[1609584496862,0.0138,29687.0,29686.0,4.0697806]
[1609584497464,0.0138,29687.0,29686.0,4.110842]
[1609584501967,0.0138,29687.0,29686.0,4.29127358]
[1609584502671,0.16318,29700.0,29686.0,4.29127358]
[1609584502871,0.12773,29706.0,29686.0,0.22187358]
[1609584503072,0.12773,29706.0,29701.0,5.568]
[1609584503270,0.00041052,29705.0,29701.0,5.568]
[1609584503671,0.00041052,29710.0,29702.0,0.00037916]
[1609584503871,0.00041052,29704.0,29702.0,0.00037916]
[1609584504073,0.18043158,29703.0,29702.0,0.00037916]
[1609584504474,0.18043158,29703.0,29702.0,5.15707916]
[1609584504475,0.2828421,29703.0,29702.0,5.15707916]
[1609584504675,0.2828421,29703.0,29702.0,5.1567]
[1609584504874,0.2828421,29703.0,29702.0,5.15707914]
[1609584505276,0.1808421,29703.0,29702.0,5.15707914]
[1609584505675,0.18043158,29703.0,29702.0,5.25877914]
[1609584506376,0.28023158,29703.0,29702.0,5.25877914]
[1609584506976,0.18043158,29703.0,29702.0,5.15707914]
[1609584509376,0.28193158,29703.0,29702.0,5.25817914]
[1609584509779,0.18043158,29703.0,29702.0,5.15707914]
[1609584511581,0.28103158,29703.0,29702.0,5.25857914]
[1609584511782,0.18043158,29703.0,29702.0,5.15707914]
[1609584512784,0.28013158,29703.0,29702.0,5.25927914]
[1609584513785,0.18043158,29703.0,29702.0,5.15707914]
[1609584514890,0.28173158,29703.0,29702.0,5.25817914]
[1609584516091,0.18043158,29703.0,29702.0,0.00037914]
[1609584516492,0.18043158,29703.0,29701.0,0.00037904]
[1609584516695,0.18043158,29703.0,29702.0,0.00037904]
[1609584517094,0.28013158,29703.0,29702.0,0.00037904]
[1609584517295,0.28013158,29703.0,29701.0,0.1015]
[1609584517296,0.28013158,29703.0,29701.0,0.10187904]
[1609584517494,0.28013158,29703.0,29702.0,0.00037904]
[1609584518297,0.18043158,29703.0,29702.0,0.00037904]
[1609584518495,0.18043158,29703.0,29702.0,0.63387904]
[1609584518795,0.18043158,29703.0,29702.0,0.6335]
[1609584518995,0.18043158,29703.0,29702.0,0.63387904]
[1609584519396,0.28103158,29703.0,29702.0,0.73437904]
[1609584520197,0.28103158,29703.0,29702.0,0.63387904]
[1609584520396,0.18043158,29703.0,29702.0,0.63387904]
[1609584528005,0.18043158,29703.0,29702.0,0.67491987]
[1609584530407,0.18043158,29703.0,29702.0,0.04141987]
[1609584531007,0.18043158,29703.0,29701.0,4.67961984]
[1609584531207,0.18043158,29703.0,29702.0,0.0414198]
[1609584541727,0.2733,29711.0,29702.0,0.0414198]
[1609584541927,0.14989,29712.0,29702.0,4.9030198]
[1609584542127,0.2897,29727.0,29702.0,4.9030198]
[1609584542327,6.73042941,29728.0,29714.0,0.18043158]
[1609584542528,0.00041033,29721.0,29714.0,0.18043158]
[1609584542728,0.00041033,29721.0,29718.0,4.3304]
[1609584543129,0.10657,29722.0,29719.0,0.00037897]
[1609584543328,2.27362941,29728.0,29719.0,0.00037897]
[1609584543633,5.4069,29735.0,29719.0,0.00037897]
[1609584543828,0.00041031,29727.0,29719.0,0.00037897]
[1609584544028,0.16843031,29727.0,29719.0,0.00037897]
[1609584544228,0.16843031,29727.0,29722.0,4.712]
[1609584544429,0.16802,29727.0,29715.0,0.00037894]
[1609584544629,0.16802,29727.0,29723.0,0.00037894]
[1609584544829,0.16802,29727.0,29722.0,5.3751]
[1609584545128,0.16802,29727.0,29723.0,0.00037894]
[1609584545730,0.16802,29727.0,29715.0,0.00037892]
[1609584546029,0.16802,29727.0,29721.0,4.5675]
[1609584546229,0.16802,29727.0,29722.0,0.18043158]
[1609584546429,0.16802,29727.0,29722.0,0.1808105]
[1609584546830,0.16802,29727.0,29723.0,0.00037892]
[1609584548332,0.18043158,29724.0,29723.0,0.00037892]
[1609584553235,0.18043158,29724.0,29722.0,0.21043158]
[1609584555640,0.18043158,29724.0,29723.0,4.4254]
[1609584556239,0.18043158,29724.0,29723.0,4.42577889]
[1609584559346,0.16802,29727.0,29723.0,4.42577889]
[1609584559746,0.2741,29736.0,29724.0,0.00037885]
[1609584560146,0.2741,29736.0,29730.0,4.3101]
[1609584560346,0.1015,29742.0,29732.0,0.18043158]
[1609584561346,0.1019,29746.0,29732.0,0.18043158]
[1609584561748,1.0,29748.0,29732.0,0.18043158]
[1609584562151,1.41370741,29749.0,29732.0,0.18043158]
[1609584562351,0.18043158,29733.0,29732.0,0.18043158]
[1609584562950,0.31189158,29733.0,29732.0,0.18043158]
[1609584563150,0.31189158,29733.0,29732.0,5.00283158]
[1609584566857,0.31189158,29733.0,29732.0,5.00321038]
[1609584570559,0.13146,29733.0,29732.0,5.00321038]
[1609584570759,0.18043158,29737.0,29732.0,5.00321038]
[1609584571359,0.18043158,29737.0,29733.0,0.00037877]
[1609584571760,1.69040634,29752.0,29733.0,0.00037877]
[1609584572362,0.00041009,29751.0,29733.0,0.00037877]
[1609584572559,0.13324009,29751.0,29745.0,0.18043158]
[1609584572761,0.13324009,29751.0,29748.0,0.6507]
[1609584572963,0.00041007,29750.0,29745.0,0.18043158]
[1609584573161,0.13283,29751.0,29749.0,5.2281]
[1609584573362,0.13283,29751.0,29745.0,0.18043158]
[1609584573762,0.00041007,29750.0,29745.0,0.18043158]
[1609584573962,0.00041007,29750.0,29749.0,5.5297]
[1609584574662,0.18084165,29750.0,29749.0,5.5297]
[1609584576265,0.18084165,29750.0,29749.0,5.52765348]
[1609584578070,0.18043158,29750.0,29749.0,5.52765348]
[1609584578371,0.18084163,29750.0,29749.0,5.52765348]
[1609584581674,0.18043158,29750.0,29749.0,5.52765348]
[1609584581875,0.18043158,29750.0,29745.0,0.18043158]
[1609584582577,0.18043158,29746.0,29745.0,0.18043158]
[1609584591687,0.18043158,29746.0,29735.0,5.0407]
[1609584591688,5.56563158,29746.0,29735.0,5.0407]
[1609584591887,0.0994,29745.0,29733.0,0.15101]
[1609584592088,0.0994,29745.0,29736.0,0.00037865]
[1609584592288,3.7812,29742.0,29734.0,0.00037867]
[1609584592589,0.18043158,29735.0,29733.0,0.00037867]
[1609584592989,0.18043158,29735.0,29732.0,0.17087]
[1609584593193,0.18043158,29735.0,29734.0,0.0003787]
[1609584593388,0.18043158,29735.0,29733.0,0.0003787]
[1609584593589,0.18043158,29735.0,29734.0,0.0003787]
[1609584594189,0.18043158,29735.0,29733.0,0.00037872]
[1609584594389,0.18043158,29735.0,29734.0,0.00037872]
[1609584594790,0.18043158,29735.0,29733.0,0.00037872]
[1609584594993,0.18043158,29735.0,29734.0,0.00037872]
[1609584595595,0.18043158,29735.0,29733.0,0.00037874]
[1609584595793,0.18043158,29735.0,29734.0,0.00037874]
[1609584596393,0.18043158,29735.0,29733.0,0.00037874]
[1609584596595,0.1008,29734.0,29729.0,0.18043158]
[1609584596795,0.1008,29734.0,29730.0,0.00037874]
[1609584597798,0.1008,29734.0,29731.0,0.00037874]
[1609584597999,0.1008,29734.0,29732.0,0.1016]
[1609584598402,0.1008,29734.0,29733.0,0.00037874]
[1609584599001,0.18043158,29735.0,29733.0,0.00037874]
[1609584599402,0.18043158,29735.0,29727.0,0.04138818]
[1609584600003,0.0994,29734.0,29727.0,0.14198818]
[1609584600503,0.0994,29734.0,29728.0,0.00037876]
[1609584600703,0.18043158,29729.0,29728.0,0.00037876]
[1609584600905,0.28103158,29729.0,29728.0,0.00037876]
[1609584601303,0.28103158,29729.0,29728.0,0.04138891]
[1609584602505,0.28103158,29729.0,29728.0,0.81238891]
[1609584603609,0.18043158,29729.0,29728.0,0.81238891]
[1609584604208,0.10983,29739.0,29728.0,0.81238891]
[1609584604410,4.118,29749.0,29729.0,0.04138619]
[1609584604607,0.1018,29740.0,29730.0,0.1007]
[1609584604808,0.1018,29740.0,29737.0,0.18043158]
[1609584605008,0.1018,29740.0,29739.0,5.2109]
[1609584605209,0.1018,29740.0,29739.0,5.21127871]
[1609584606112,0.1018,29740.0,29739.0,5.31307871]
[1609584606712,0.28223158,29740.0,29739.0,5.31307871]
[1609584607212,0.28223158,29740.0,29739.0,5.34307871]
[1609584609716,0.18043158,29740.0,29739.0,5.24127871]
[1609584610719,0.28123158,29740.0,29739.0,5.34207871]
[1609584611920,0.18043158,29740.0,29739.0,5.24127871]
[1609584612619,0.18043158,29740.0,29739.0,5.28228016]
[1609584612920,0.18043158,29740.0,29739.0,5.34287871]
[1609584613120,0.28083158,29740.0,29739.0,5.34287871]
[1609584613322,0.18043158,29740.0,29739.0,5.28228032]
[1609584614523,0.28153158,29740.0,29739.0,5.38158032]
[1609584616622,0.18043158,29740.0,29739.0,5.28228032]
[1609584617626,0.28233158,29740.0,29739.0,5.38438032]
[1609584618325,0.18043158,29740.0,29739.0,5.38438032]
[1609584618525,0.18043158,29740.0,29739.0,5.28228032]
[1609584619427,0.27993158,29740.0,29739.0,5.38228032]
[1609584621228,0.18043158,29740.0,29739.0,5.28228032]
[1609584621529,0.10938,29745.0,29739.0,5.28228032]
[1609584621929,0.2994,29750.0,29740.0,0.04137468]
[1609584622329,0.1,29749.0,29741.0,0.1]
[1609584622729,0.1,29749.0,29742.0,0.04137417]
[1609584622930,0.1,29749.0,29746.0,0.18043158]
[1609584623531,0.1,29749.0,29747.0,0.00038118]
[1609584624130,0.2994,29750.0,29747.0,0.00038118]
[1609584624831,0.18043158,29748.0,29747.0,0.00038118]
[1609584630742,0.18043158,29748.0,29747.0,5.01878118]
[1609584642162,0.18084152,29748.0,29747.0,5.01878118]
[1609584642465,0.18043158,29748.0,29747.0,5.01878118]
[1609584644568,0.1808415,29748.0,29747.0,5.01878118]
[1609584645569,0.1808415,29748.0,29747.0,5.05977318]
[1609584646972,0.1808415,29748.0,29747.0,0.00038118]
[1609584647372,1.7207415,29748.0,29747.0,0.00038118]
[1609584647773,1.7207415,29748.0,29744.0,0.0413747]
[1609584647975,1.7207415,29748.0,29747.0,0.00038118]
[1609584648174,1.72033158,29748.0,29745.0,0.00038118]
[1609584648474,1.72074152,29748.0,29747.0,0.00038118]
[1609584648875,0.00040994,29747.0,29746.0,0.00038118]
[1609584649075,1.72074152,29748.0,29747.0,0.00038118]
[1609584649275,0.00040994,29747.0,29746.0,0.00038118]
[1609584649577,0.00040994,29747.0,29740.0,0.04137628]
[1609584649775,0.00040994,29747.0,29746.0,0.00038118]
[1609584650078,0.00040994,29747.0,29740.0,0.04137704]
[1609584650376,0.00040994,29747.0,29746.0,0.0003812]
[1609584650577,0.00040994,29747.0,29741.0,0.14157729]
[1609584650877,0.00040994,29747.0,29742.0,0.0003812]
[1609584651281,0.18043158,29743.0,29742.0,0.0003812]
[1609584651484,0.28113158,29743.0,29742.0,0.0003812]
[1609584653380,0.18043158,29743.0,29742.0,0.0003812]
[1609584653782,0.18043158,29743.0,29740.0,0.04137735]
[1609584653981,0.18043158,29743.0,29742.0,0.0003812]
[1609584654281,0.27973158,29743.0,29742.0,0.1005]
[1609584654582,0.27973158,29743.0,29742.0,0.1008812]
[1609584655183,1.18043158,29743.0,29742.0,0.0003812]
[1609584655583,1.18043158,29743.0,29740.0,0.0003812]
[1609584656083,1.28043158,29743.0,29740.0,0.0003812]
[1609584656986,1.18043158,29743.0,29740.0,0.0003812]
[1609584657987,0.102,29742.0,29741.0,0.1004]
[1609584658185,1.102,29742.0,29741.0,0.1004]
[1609584658488,1.102,29742.0,29741.0,0.10078123]
[1609584658888,1.102,29742.0,29741.0,0.00038123]
[1609584659087,1.0,29742.0,29741.0,0.00038123]
[1609584659287,1.0,29742.0,29740.0,0.00038123]
[1609584659488,1.0,29742.0,29741.0,0.00038123]
[1609584660089,1.1014,29742.0,29740.0,0.10238123]
[1609584660289,1.1014,29742.0,29741.0,0.00038123]
[1609584660992,1.0,29742.0,29741.0,0.00038123]
[1609584661391,1.0,29742.0,29740.0,0.00038123]
[1609584661691,1.0,29742.0,29741.0,0.00038123]
[1609584662094,1.1009,29742.0,29741.0,0.00038123]
[1609584662293,0.1009,29742.0,29740.0,0.10168123]
[1609584662492,0.1009,29742.0,29741.0,0.00038123]
[1609584667199,0.1009,29742.0,29741.0,4.59798123]
[1609584667401,0.18043158,29743.0,29741.0,4.59798123]
[1609584667799,0.18043158,29743.0,29742.0,0.00038118]
[1609584668002,0.18043158,29743.0,29742.0,0.10238118]
[1609584668303,0.28053158,29743.0,29742.0,0.10238118]
[1609584668704,0.18043158,29743.0,29742.0,0.00038118]
[1609584669804,0.28003158,29743.0,29742.0,0.09968118]
[1609584671005,0.18043158,29743.0,29742.0,0.00038118]
[1609584672006,0.28173158,29743.0,29742.0,0.10078118]
[1609584673307,0.28173158,29743.0,29742.0,0.00038118]
[1609584673505,0.18043158,29743.0,29742.0,0.00038118]
[1609584674507,0.28233158,29743.0,29742.0,0.10078118]
[1609584675108,0.18043158,29743.0,29742.0,0.00038118]
[1609584675708,0.18043158,29743.0,29742.0,0.0413723]
[1609584676011,0.28263158,29743.0,29742.0,0.1411723]
[1609584677111,0.18043158,29743.0,29742.0,0.0413723]
[1609584678111,0.28213158,29743.0,29742.0,0.1429723]
[1609584679016,0.18043158,29743.0,29742.0,0.0413723]
[1609584680015,0.28263158,29743.0,29742.0,0.1430723]
[1609584680615,0.18043158,29743.0,29742.0,0.0413723]
[1609584681619,0.28053158,29743.0,29742.0,0.1406723]
[1609584683019,0.18043158,29743.0,29742.0,0.0413723]
[1609584684221,0.28043158,29743.0,29742.0,0.1417723]
[1609584684921,0.18043158,29743.0,29742.0,0.0413723]
[1609584686224,0.28053158,29743.0,29742.0,0.1413723]
[1609584686624,0.28053158,29743.0,29742.0,4.7643723]
[1609584687224,0.28053158,29743.0,29742.0,4.72338118]
[1609584687623,0.28053158,29743.0,29742.0,4.62338118]
[1609584687824,0.18043158,29743.0,29742.0,4.62338118]
[1609584689230,0.18043158,29743.0,29742.0,4.72518118]
[1609584689231,0.28123158,29743.0,29742.0,4.72518118]
[1609584690125,0.18043158,29743.0,29742.0,4.62338118]
[1609584691127,0.28143158,29743.0,29742.0,4.72338118]
[1609584691628,0.28143158,29743.0,29742.0,0.10038118]
[1609584692529,0.18043158,29743.0,29742.0,0.00038118]
[1609584693029,0.18043158,29743.0,29741.0,0.00038173]
[1609584694733,0.28113158,29743.0,29742.0,5.4295]
[1609584694931,0.28113158,29743.0,29742.0,5.5296]
[1609584695132,0.28113158,29743.0,29742.0,5.52998173]
[1609584695832,0.18043158,29743.0,29742.0,5.42988173]
[1609584696032,0.18043158,29743.0,29742.0,5.47087138]
[1609584696932,0.28073158,29743.0,29742.0,5.57117138]
[1609584697333,0.18043158,29743.0,29742.0,5.47087138]
[1609584698335,0.28063158,29743.0,29742.0,5.57227138]
[1609584700535,0.28063158,29743.0,29742.0,5.47087138]
[1609584700739,0.18043158,29743.0,29742.0,5.47087138]
[1609584701338,0.18043158,29743.0,29742.0,0.04137138]
[1609584701739,0.28183158,29743.0,29742.0,0.0996]
[1609584702138,0.28183158,29743.0,29742.0,0.14097132]
[1609584705340,0.18043158,29743.0,29742.0,0.04137132]
[1609584705742,0.18043158,29743.0,29741.0,0.04137016]
[1609584705941,0.18043158,29743.0,29742.0,0.04137001]
[1609584706242,0.18043158,29743.0,29741.0,0.04136943]
[1609584706441,0.27983158,29743.0,29742.0,0.04136943]
[1609584706641,0.27983158,29743.0,29742.0,0.14106943]
[1609584706842,0.27983158,29743.0,29742.0,0.76436943]
[1609584707445,0.18043158,29743.0,29742.0,0.66466943]
[1609584708644,0.28003158,29743.0,29742.0,0.76536943]
[1609584709046,0.18043158,29743.0,29742.0,0.66466943]
[1609584710445,0.28123158,29743.0,29742.0,0.76476943]
[1609584711846,0.18043158,29743.0,29742.0,0.66466943]
[1609584714251,0.18043158,29743.0,29742.0,0.04136943]
[1609584714451,5.00463158,29743.0,29742.0,0.04136943]
[1609584714652,5.00463158,29743.0,29740.0,0.18043158]
[1609584714653,5.00463158,29743.0,29741.0,0.04137072]
[1609584715053,5.00463158,29743.0,29742.0,0.04137359]
[1609584715255,6.00463158,29743.0,29742.0,0.04137359]
[1609584715454,6.00463158,29743.0,29740.0,0.041372]
[1609584715856,0.00040993,29742.0,29740.0,0.041372]
[1609584716358,0.00040993,29742.0,29740.0,0.00038173]
[1609584716559,6.00463158,29743.0,29741.0,0.00038177]
[1609584717059,6.00463158,29743.0,29740.0,0.00038177]
[1609584717259,1.0,29742.0,29740.0,0.00038177]
[1609584718259,6.00463158,29743.0,29740.0,0.00038177]
[1609584719360,5.00463158,29743.0,29740.0,0.00038177]
[1609584720260,0.18043158,29743.0,29740.0,0.00038177]
[1609584720461,0.18043158,29743.0,29742.0,5.5518]
[1609584720862,0.18043158,29743.0,29742.0,5.55218175]
[1609584723265,0.18043158,29743.0,29742.0,0.00038175]
[1609584723463,0.18043158,29743.0,29742.0,0.04137001]
[1609584723663,0.18043158,29743.0,29739.0,0.03]
[1609584724064,0.18043158,29740.0,29739.0,0.03]
[1609584724464,0.18043158,29740.0,29739.0,0.07137104]
[1609584725967,0.18043158,29740.0,29739.0,5.09500262]
[1609584727967,0.18043158,29740.0,29739.0,0.25180262]
[1609584729070,0.18043158,29740.0,29739.0,0.25180058]
[1609584730872,1.2994,29750.0,29739.0,0.071369]
[1609584731374,1.2994,29750.0,29740.0,0.04136906]
[1609584731973,1.2994,29750.0,29743.0,0.18043158]
[1609584732375,1.2994,29750.0,29744.0,0.00038176]
[1609584732575,0.2994,29750.0,29744.0,0.00038176]
[1609584733477,1.2994,29750.0,29744.0,0.00038176]
[1609584733981,0.18043158,29745.0,29744.0,0.00038176]
[1609584735581,0.18043158,29745.0,29744.0,4.71508176]
[1609584740490,0.18043158,29745.0,29744.0,4.75606821]
[1609584740890,0.18043158,29745.0,29744.0,4.71508176]
[1609584741090,0.18043158,29745.0,29744.0,4.75606824]
[1609584741391,0.18043158,29745.0,29744.0,4.71508176]
[1609584741593,0.18043158,29745.0,29744.0,4.75606805]
[1609584766125,0.18043158,29745.0,29744.0,0.04136805]
[1609584775240,0.18043158,29745.0,29743.0,0.04136898]
[1609584775541,0.18043158,29745.0,29744.0,0.04136887]
[1609584776043,0.18043158,29745.0,29743.0,0.04136913]
[1609584776243,0.18043158,29745.0,29744.0,0.04136913]
[1609584776843,0.18043158,29745.0,29743.0,0.04136915]
[1609584777044,0.18043158,29745.0,29744.0,0.04136915]
[1609584777545,0.18043158,29745.0,29744.0,0.04098739]
[1609584777745,0.18043158,29745.0,29743.0,0.04136917]
[1609584777946,0.18043158,29745.0,29744.0,0.04136917]
[1609584778345,0.18043158,29745.0,29743.0,0.04136914]
[1609584778646,0.18043158,29745.0,29744.0,0.04136911]
[1609584779147,0.18043158,29745.0,29743.0,0.04136911]
[1609584789459,0.18043158,29745.0,29743.0,0.12334427]
[1609584789658,1.18043158,29745.0,29743.0,0.12334427]
[1609584789960,1.18043158,29745.0,29743.0,0.04136911]
[1609584790259,1.18043158,29745.0,29744.0,0.04137114]
[1609584790864,1.18043158,29745.0,29743.0,0.04137127]
[1609584791064,1.18043158,29745.0,29744.0,0.04137163]
[1609584791561,1.18043158,29745.0,29743.0,0.04137213]
[1609584791763,1.18043158,29745.0,29744.0,0.04137213]
[1609584792364,1.85313158,29745.0,29743.0,0.04137221]
[1609584792565,1.18043158,29745.0,29744.0,0.04137246]
[1609584792765,6.82353158,29745.0,29744.0,0.04137246]
[1609584792963,6.8239415,29745.0,29740.0,0.04137381]
[1609584793163,0.18043158,29741.0,29739.0,0.03]
[1609584793364,1.0,29740.0,29739.0,0.03]
[1609584793567,6.6459,29740.0,29739.0,0.03]
[1609584793965,6.6459,29740.0,29739.0,0.07137732]
[1609584794165,6.6459,29740.0,29739.0,0.03]
[1609584794466,6.6459,29740.0,29739.0,0.07137653]
[1609584794665,6.6459,29740.0,29739.0,0.03]
[1609584794865,1.0,29740.0,29739.0,0.03]
[1609584795066,1.0,29740.0,29739.0,0.07137707]
[1609584795266,1.0,29740.0,29739.0,0.03]
[1609584795466,1.0,29740.0,29739.0,0.0713773]
[1609584795866,1.0,29740.0,29739.0,5.56558201]
[1609584798369,1.0,29740.0,29739.0,5.5652]
[1609584798571,0.18043158,29741.0,29739.0,5.5652]
[1609584798770,0.18043158,29741.0,29739.0,5.56558201]
[1609584798970,0.18043158,29741.0,29740.0,0.00038201]
[1609584801270,5.38363158,29741.0,29740.0,0.00038201]
[1609584801872,6.38363158,29741.0,29740.0,0.00038201]
[1609584805879,5.38363158,29741.0,29740.0,0.00038201]
[1609584808285,6.38363158,29741.0,29740.0,0.00038201]
[1609584809484,5.38363158,29741.0,29740.0,0.00038201]
[1609584810184,6.38363158,29741.0,29740.0,0.00038201]
[1609584811884,6.38363158,29741.0,29733.0,0.1686]
[1609584812085,1.18043158,29741.0,29720.0,0.14355]
[1609584812286,5.5061,29734.0,29724.0,5.6253]
[1609584812486,6.5061,29734.0,29724.0,5.6253]
[1609584812685,1.0,29733.0,29727.0,0.04138291]
[1609584812887,5.4269,29728.0,29725.0,0.04138393]
[1609584813086,5.4269,29728.0,29727.0,0.04138381]
[1609584813285,5.4269,29728.0,29727.0,0.16281381]
[1609584813485,5.4269,29728.0,29727.0,0.12143]
[1609584813687,5.4269,29728.0,29727.0,0.16281502]
[1609584814688,5.4269,29728.0,29727.0,0.12181209]
[1609584815286,5.60733158,29728.0,29727.0,0.16281632]
[1609584817288,5.60733158,29728.0,29727.0,0.16281633]
[1609584817889,5.60733158,29728.0,29727.0,0.1218121]
[1609584830307,6.60733158,29728.0,29727.0,0.1218121]
[1609584830709,7.60733158,29728.0,29727.0,0.1218121]
[1609584831510,6.60733158,29728.0,29727.0,0.1218121]
[1609584831915,7.60733158,29728.0,29727.0,0.1218121]
[1609584832316,7.60733158,29728.0,29727.0,0.1118121]
[1609584834014,6.60733158,29728.0,29727.0,0.1118121]
[1609584834214,7.60733158,29728.0,29727.0,0.1118121]
[1609584834814,6.60733158,29728.0,29727.0,0.1018121]
[1609584835617,6.60733158,29728.0,29727.0,0.0513121]
[1609584836118,6.60733158,29728.0,29727.0,0.0413121]
[1609584836719,7.60733158,29728.0,29727.0,0.0413121]
[1609584838119,7.61543158,29728.0,29727.0,0.0413121]
[1609584842625,6.61543158,29728.0,29727.0,0.0413121]
[1609584842829,7.61543158,29728.0,29727.0,0.0413121]
[1609584843027,7.61543158,29728.0,29720.0,0.09555]
[1609584843229,2.18853158,29728.0,29714.0,0.09747]
[1609584843428,0.18043158,29721.0,29712.0,5.1956]
[1609584843630,0.18043158,29721.0,29698.0,0.18043158]
[1609584843829,0.18043158,29721.0,29711.0,4.0473]
[1609584844230,0.18043158,29721.0,29712.0,0.00038228]
[1609584844630,0.0996,29720.0,29712.0,0.00038228]
[1609584845331,0.18043158,29713.0,29712.0,0.00038228]
[1609584845531,0.75403158,29713.0,29712.0,0.00038228]
[1609584846133,0.18043158,29713.0,29712.0,0.00038228]
[1609584846536,0.18043158,29713.0,29708.0,0.00038228]
[1609584846934,0.18043158,29713.0,29712.0,0.00038228]
[1609584847137,0.18043158,29713.0,29709.0,0.00038228]
[1609584847339,5.09003158,29710.0,29707.0,0.1733]
[1609584847637,5.09003158,29710.0,29709.0,0.00038229]
[1609584848037,5.09003158,29710.0,29708.0,0.00038229]
[1609584848237,5.09003158,29710.0,29709.0,0.00038229]
[1609584848737,5.09003158,29710.0,29708.0,0.00038207]
[1609584848938,5.09003158,29710.0,29709.0,0.00038207]
[1609584849539,5.09003158,29710.0,29708.0,0.00038207]
[1609584849740,5.09003158,29710.0,29709.0,0.00038207]
[1609584850341,5.09003158,29710.0,29708.0,0.00038209]
[1609584850540,5.09003158,29710.0,29709.0,0.00038209]
[1609584851041,5.09003158,29710.0,29708.0,0.00038209]
[1609584852341,5.09003158,29710.0,29709.0,0.00038209]
[1609584852644,5.09003158,29710.0,29708.0,0.00038209]
[1609584854946,0.18043158,29710.0,29708.0,0.00038209]
[1609584855347,5.5125,29709.0,29708.0,0.00038209]
[1609584858453,5.8126,29709.0,29696.0,0.00038222]
[1609584858853,5.8126,29709.0,29708.0,0.00038222]
[1609584859053,5.8126,29709.0,29698.0,0.14196]
[1609584859254,5.8126,29709.0,29708.0,0.00038222]
[1609584859654,5.8126,29709.0,29699.0,0.00038222]
[1609584859853,5.8126,29709.0,29708.0,0.00038222]
[1609584860053,5.8126,29709.0,29700.0,0.00038222]
[1609584860356,5.8126,29709.0,29708.0,0.00038222]
[1609584860556,5.8126,29709.0,29701.0,0.00038222]
[1609584860955,5.8126,29709.0,29708.0,0.00038222]
[1609584861155,5.8126,29709.0,29702.0,0.00038222]
[1609584861357,5.8126,29709.0,29708.0,0.00038222]
[1609584861757,5.8126,29709.0,29703.0,0.00038224]
[1609584861955,5.8126,29709.0,29708.0,0.00038224]
[1609584862156,5.8126,29709.0,29704.0,0.00038224]
[1609584862456,5.8126,29709.0,29708.0,0.00038224]
[1609584862656,6.8126,29709.0,29705.0,0.00038224]
[1609584862959,6.8126,29709.0,29708.0,0.00038224]
[1609584863257,6.8126,29709.0,29706.0,0.00038224]
[1609584863458,6.8126,29709.0,29700.0,4.8878]
[1609584863459,0.18043158,29707.0,29700.0,4.8878]
[1609584863859,0.18043158,29707.0,29701.0,0.00038224]
[1609584864561,0.28263158,29707.0,29701.0,0.00038224]
[1609584865163,0.18043158,29707.0,29701.0,0.00038224]
[1609584865466,0.18043158,29702.0,29701.0,0.00038224]
[1609584866167,0.81523158,29702.0,29701.0,0.00038224]
[1609584866768,0.81523158,29702.0,29692.0,0.04142525]
[1609584866969,0.18043158,29702.0,29701.0,0.00038224]
[1609584867171,5.83303158,29702.0,29694.0,4.1059]
[1609584867569,5.6526,29702.0,29701.0,0.00038224]
[1609584867770,5.6526,29702.0,29695.0,0.00038224]
[1609584867972,5.6526,29702.0,29701.0,0.00038224]
[1609584868271,5.6526,29702.0,29695.0,0.00038224]
[1609584868471,5.6526,29702.0,29701.0,0.00038224]
[1609584868871,5.6526,29702.0,29696.0,0.00038224]
[1609584869073,5.6526,29702.0,29701.0,0.00038224]
[1609584869272,5.6526,29702.0,29697.0,0.00038224]
[1609584869473,0.18043158,29698.0,29697.0,0.00038224]
[1609584869673,0.18043158,29698.0,29694.0,4.1059]
[1609584870073,0.18043158,29698.0,29695.0,0.00038224]
[1609584870772,0.94513158,29698.0,29695.0,0.00038224]
[1609584870972,0.18043158,29698.0,29695.0,0.00038224]
[1609584871173,4.2946,29696.0,29695.0,0.00038224]
[1609584871373,4.2946,29696.0,29692.0,0.0414258]
[1609584871574,0.18043158,29693.0,29692.0,0.0414258]
[1609584871775,0.18043158,29693.0,29692.0,0.04104356]
[1609584871976,0.18043158,29693.0,29692.0,0.04142581]
[1609584874782,0.18043158,29693.0,29692.0,0.04142582]
[1609584880588,0.74123158,29693.0,29692.0,0.04142582]
[1609584894707,0.74123158,29693.0,29692.0,0.68552582]
[1609584895110,0.18043158,29693.0,29692.0,0.76761569]
[1609584895709,0.18043158,29696.0,29692.0,0.94804727]
[1609584895909,0.18043158,29696.0,29692.0,1.94804727]
[1609584896109,0.18043158,29696.0,29693.0,0.08247082]
[1609584896310,0.18043158,29696.0,29693.0,0.1235151]
[1609584896609,0.18043158,29696.0,29693.0,1.1235151]
[1609584897010,0.18043158,29696.0,29694.0,0.12349475]
[1609584897611,5.5955,29715.0,29694.0,0.12349475]
[1609584897810,5.5955,29715.0,29702.0,0.18043158]
[1609584898010,5.5955,29715.0,29704.0,0.5389]
[1609584898612,5.5955,29715.0,29705.0,0.04141703]
[1609584899711,0.18043158,29706.0,29705.0,0.04141703]